[Event "*** SCC Grand Prix: Titled Tuesday Blitz"]
[Site "Chess.com"]
[Date "2020.10.13"]
[Round "3"]
[White "PavelShkapenko"]
[Black "Susal_De_Silva"]
[Result "1/2-1/2"]
[WhiteElo "2702"]
[BlackElo "2448"]
[TimeControl "180+1"]
[EndTime "10:29:45 PDT"]
[Termination "Game drawn by repetition"]

1. e4 {[%clk 0:03:00.9]} 1... e5 {[%clk 0:03:00.1]} 2. Nf3 {[%clk 0:03:00.4]}
2... d6 {[%clk 0:03:00.4]} 3. Bc4 {[%clk 0:03:00]} 3... Be7 {[%clk 0:03:00.2]}
4. c3 {[%clk 0:02:59.5]} 4... Nf6 {[%clk 0:03:00.1]} 5. d3 {[%clk 0:03:00]} 5...
O-O {[%clk 0:03:00.3]} 6. O-O {[%clk 0:03:00.1]} 6... a5 {[%clk 0:02:59.6]} 7.
Bb3 {[%clk 0:02:58.9]} 7... c6 {[%clk 0:02:59.7]} 8. Re1 {[%clk 0:02:57.8]} 8...
Na6 {[%clk 0:02:58.3]} 9. Bc2 {[%clk 0:02:57]} 9... Bg4 {[%clk 0:02:56.2]} 10.
Nbd2 {[%clk 0:02:56.8]} 10... Nc5 {[%clk 0:02:54.3]} 11. Nf1 {[%clk 0:02:56.5]}
11... Re8 {[%clk 0:02:54.4]} 12. Ng3 {[%clk 0:02:54.8]} 12... Nh5 {[%clk
0:02:41.8]} 13. h3 {[%clk 0:02:46.1]} 13... Bxf3 {[%clk 0:02:41.6]} 14. Qxf3
{[%clk 0:02:45.8]} 14... Nxg3 {[%clk 0:02:42.5]} 15. Qxg3 {[%clk 0:02:45.6]}
15... Ne6 {[%clk 0:02:41.1]} 16. Bb3 {[%clk 0:02:41]} 16... Bh4 {[%clk
0:02:38.6]} 17. Qg4 {[%clk 0:02:36.7]} 17... a4 {[%clk 0:02:35.8]} 18. Bc2
{[%clk 0:02:15.8]} 18... Qf6 {[%clk 0:02:10.5]} 19. Be3 {[%clk 0:02:12]} 19...
Bg5 {[%clk 0:02:09.4]} 20. g3 {[%clk 0:01:56.1]} 20... Qg6 {[%clk 0:01:59.7]}
21. Bxg5 {[%clk 0:01:42.2]} 21... Nxg5 {[%clk 0:01:58.9]} 22. Kg2 {[%clk
0:01:37]} 22... Ne6 {[%clk 0:01:39.5]} 23. Qxg6 {[%clk 0:01:15.4]} 23... hxg6
{[%clk 0:01:40.4]} 24. h4 {[%clk 0:01:15.7]} 24... g5 {[%clk 0:01:38.3]} 25. Rh1
{[%clk 0:01:13.9]} 25... gxh4 {[%clk 0:01:37.9]} 26. Rxh4 {[%clk 0:01:14]} 26...
f6 {[%clk 0:01:37.2]} 27. Rah1 {[%clk 0:01:08.1]} 27... Kf7 {[%clk 0:01:37.6]}
28. Bd1 {[%clk 0:01:08.2]} 28... Ke7 {[%clk 0:01:32.2]} 29. Rh7 {[%clk
0:01:06.5]} 29... b5 {[%clk 0:01:27.1]} 30. Bg4 {[%clk 0:01:05.4]} 30... Rg8
{[%clk 0:01:27.1]} 31. f4 {[%clk 0:00:52.7]} 31... c5 {[%clk 0:01:25.4]} 32. Kf3
{[%clk 0:00:48.1]} 32... Rab8 {[%clk 0:01:22.5]} 33. Bxe6 {[%clk 0:00:27.9]}
33... Kxe6 {[%clk 0:01:21.9]} 34. f5+ {[%clk 0:00:28.8]} 34... Kf7 {[%clk
0:01:20.4]} 35. g4 {[%clk 0:00:29.7]} 35... Rbf8 {[%clk 0:00:57.6]} 36. g5
{[%clk 0:00:29.2]} 36... Ke8 {[%clk 0:00:47]} 37. Rg1 {[%clk 0:00:27.9]} 37...
fxg5 {[%clk 0:00:32.5]} 38. Rxg5 {[%clk 0:00:26.8]} 38... Rf7 {[%clk 0:00:33]}
39. Rg6 {[%clk 0:00:25.7]} 39... Rd7 {[%clk 0:00:20.6]} 40. Ke3 {[%clk
0:00:18.9]} 40... b4 {[%clk 0:00:09.3]} 41. c4 {[%clk 0:00:18.6]} 41... a3
{[%clk 0:00:08.9]} 42. b3 {[%clk 0:00:18.7]} 42... Kf8 {[%clk 0:00:07.9]} 43. f6
{[%clk 0:00:17.7]} 43... Rc7 {[%clk 0:00:02.8]} 44. fxg7+ {[%clk 0:00:13.8]}
44... Rcxg7 {[%clk 0:00:03.7]} 45. Rhxg7 {[%clk 0:00:12.6]} 45... Rxg7 {[%clk
0:00:04.6]} 46. Rxg7 {[%clk 0:00:05.5]} 46... Kxg7 {[%clk 0:00:05.5]} 47. Kf3
{[%clk 0:00:05.8]} 47... Kf6 {[%clk 0:00:05.6]} 48. Kg4 {[%clk 0:00:04.9]} 48...
Kg6 {[%clk 0:00:06]} 49. Kh4 {[%clk 0:00:05.5]} 49... Kh6 {[%clk 0:00:06.5]} 50.
Kg4 {[%clk 0:00:06.1]} 50... Kg6 {[%clk 0:00:07]} 51. Kh4 {[%clk 0:00:06.7]}
51... Kh6 {[%clk 0:00:07.5]} 52. Kg4 {[%clk 0:00:07.6]} 52... Kg6 {[%clk
0:00:08]} 1/2-1/2

[Event "*** SCC Grand Prix: Titled Tuesday Blitz"]
[Site "Chess.com"]
[Date "2020.10.13"]
[Round "3"]
[White "Slovak_fighter2000"]
[Black "Ginger_GM"]
[Result "0-1"]
[WhiteElo "2403"]
[BlackElo "2595"]
[TimeControl "180+1"]
[EndTime "10:29:46 PDT"]
[Termination "Ginger_GM won by checkmate"]

1. Nf3 {[%clk 0:03:00.9]} 1... f5 {[%clk 0:02:59.8]} 2. e4 {[%clk 0:02:58.2]}
2... fxe4 {[%clk 0:02:59.5]} 3. Ng5 {[%clk 0:02:57.6]} 3... Nc6 {[%clk
0:02:58.5]} 4. d3 {[%clk 0:02:50.1]} 4... e3 {[%clk 0:02:58.6]} 5. Bxe3 {[%clk
0:02:42.3]} 5... e5 {[%clk 0:02:56.7]} 6. Be2 {[%clk 0:02:36.7]} 6... Be7 {[%clk
0:02:56.5]} 7. Nf3 {[%clk 0:02:28.9]} 7... Nf6 {[%clk 0:02:55.2]} 8. d4 {[%clk
0:02:19.4]} 8... e4 {[%clk 0:02:50]} 9. Ne5 {[%clk 0:02:18.2]} 9... O-O {[%clk
0:02:46.1]} 10. c4 {[%clk 0:02:07.7]} 10... d6 {[%clk 0:02:42.8]} 11. Nxc6
{[%clk 0:01:56.4]} 11... bxc6 {[%clk 0:02:42]} 12. d5 {[%clk 0:01:55.8]} 12...
c5 {[%clk 0:02:31.1]} 13. Nc3 {[%clk 0:01:53.7]} 13... Qe8 {[%clk 0:02:30.7]}
14. Qc2 {[%clk 0:01:44.6]} 14... Qg6 {[%clk 0:02:29.8]} 15. O-O-O {[%clk
0:01:38]} 15... Rb8 {[%clk 0:01:46.9]} 16. h3 {[%clk 0:01:26.1]} 16... Nh5
{[%clk 0:01:27.3]} 17. Qxe4 {[%clk 0:01:11.9]} 17... Qxe4 {[%clk 0:01:02.3]} 18.
Nxe4 {[%clk 0:01:12.8]} 18... Nf4 {[%clk 0:00:58.7]} 19. Bf1 {[%clk 0:00:57]}
19... Ng6 {[%clk 0:00:48.9]} 20. g3 {[%clk 0:00:51.2]} 20... Bf5 {[%clk
0:00:44.9]} 21. Bd3 {[%clk 0:00:37.7]} 21... Ne5 {[%clk 0:00:44.3]} 22. Bc2
{[%clk 0:00:12.4]} 22... Nxc4 {[%clk 0:00:44]} 23. b3 {[%clk 0:00:08.8]} 23...
Nxe3 {[%clk 0:00:39.1]} 24. fxe3 {[%clk 0:00:09.7]} 24... Bxe4 {[%clk
0:00:34.9]} 25. Bxe4 {[%clk 0:00:09.4]} 25... Bg5 {[%clk 0:00:35.2]} 26. Rhf1
{[%clk 0:00:05.6]} 26... Bxe3+ {[%clk 0:00:34.1]} 27. Kc2 {[%clk 0:00:05.9]}
27... Bf2 {[%clk 0:00:29.1]} 28. Rd2 {[%clk 0:00:04.2]} 28... Bxg3 {[%clk
0:00:28.3]} 29. Rg1 {[%clk 0:00:03.5]} 29... Be5 {[%clk 0:00:26.3]} 30. Rdg2
{[%clk 0:00:02.5]} 30... Rf4 {[%clk 0:00:24.8]} 31. Bd3 {[%clk 0:00:02.6]} 31...
a5 {[%clk 0:00:23.2]} 32. Bc4 {[%clk 0:00:01.1]} 32... Rbf8 {[%clk 0:00:23.1]}
33. Rd2 {[%clk 0:00:01.7]} 33... Rf2 {[%clk 0:00:21.3]} 34. Rxf2 {[%clk
0:00:01.6]} 34... Rxf2+ {[%clk 0:00:21.4]} 35. Kd3 {[%clk 0:00:02.1]} 35... Rxa2
{[%clk 0:00:21.3]} 36. Rf1 {[%clk 0:00:01.5]} 36... g6 {[%clk 0:00:20.5]} 37.
Rf3 {[%clk 0:00:02]} 37... Rh2 {[%clk 0:00:19.8]} 38. Ke4 {[%clk 0:00:02.2]}
38... Kg7 {[%clk 0:00:19.9]} 39. Re3 {[%clk 0:00:02.1]} 39... Rf2 {[%clk
0:00:19.2]} 40. Kd3 {[%clk 0:00:01.7]} 40... h5 {[%clk 0:00:19.3]} 41. Ke4
{[%clk 0:00:02.2]} 41... Rd2 {[%clk 0:00:18.8]} 42. Be2 {[%clk 0:00:02.5]} 42...
Rd4+ {[%clk 0:00:18.4]} 43. Kf3 {[%clk 0:00:03]} 43... g5 {[%clk 0:00:18.4]} 44.
Kg2 {[%clk 0:00:02.7]} 44... Kg6 {[%clk 0:00:18.4]} 45. Bd3+ {[%clk 0:00:03.1]}
45... Kh6 {[%clk 0:00:18.2]} 46. Be2 {[%clk 0:00:03.5]} 46... g4 {[%clk
0:00:18.1]} 47. hxg4 {[%clk 0:00:03.5]} 47... hxg4 {[%clk 0:00:19]} 48. Rd3
{[%clk 0:00:02.7]} 48... Re4 {[%clk 0:00:17.1]} 49. Bf1 {[%clk 0:00:02.5]} 49...
Kg5 {[%clk 0:00:17.4]} 50. Rd2 {[%clk 0:00:02.8]} 50... Bf4 {[%clk 0:00:17.2]}
51. Ra2 {[%clk 0:00:02.7]} 51... Re3 {[%clk 0:00:15.4]} 52. Rxa5 {[%clk
0:00:02.7]} 52... Rg3+ {[%clk 0:00:16.1]} 53. Kf2 {[%clk 0:00:02.7]} 53... Rxb3
{[%clk 0:00:16.7]} 54. Ra7 {[%clk 0:00:02.3]} 54... Rb2+ {[%clk 0:00:17.1]} 55.
Kg1 {[%clk 0:00:01.9]} 55... g3 {[%clk 0:00:17.1]} 56. Rxc7 {[%clk 0:00:01.7]}
56... Kg4 {[%clk 0:00:17.6]} 57. Rg7+ {[%clk 0:00:01.7]} 57... Kf3 {[%clk
0:00:17.8]} 58. Rg8 {[%clk 0:00:01.5]} 58... Be3+ {[%clk 0:00:17.1]} 59. Kh1
{[%clk 0:00:01.2]} 59... Rh2# {[%clk 0:00:17.7]} 0-1

[Event "*** SCC Grand Prix: Titled Tuesday Blitz"]
[Site "Chess.com"]
[Date "2020.10.13"]
[Round "3"]
[White "tylityli"]
[Black "Region_07"]
[Result "1-0"]
[WhiteElo "2206"]
[BlackElo "2336"]
[TimeControl "180+1"]
[EndTime "10:29:46 PDT"]
[Termination "tylityli won on time"]

1. d4 {[%clk 0:03:00.9]} 1... d5 {[%clk 0:02:57.3]} 2. c4 {[%clk 0:03:00.1]}
2... Nc6 {[%clk 0:02:57.1]} 3. Nf3 {[%clk 0:02:52.7]} 3... Bg4 {[%clk
0:02:55.7]} 4. Nc3 {[%clk 0:02:51.3]} 4... e6 {[%clk 0:02:54.3]} 5. e3 {[%clk
0:02:49]} 5... Nf6 {[%clk 0:02:53.8]} 6. Be2 {[%clk 0:02:48.3]} 6... dxc4 {[%clk
0:02:51]} 7. O-O {[%clk 0:02:47.8]} 7... Bd6 {[%clk 0:02:49.6]} 8. Qa4 {[%clk
0:02:46.5]} 8... O-O {[%clk 0:02:48.4]} 9. Qxc4 {[%clk 0:02:46.5]} 9... Qe7
{[%clk 0:02:43.3]} 10. a3 {[%clk 0:02:44.1]} 10... a6 {[%clk 0:02:42.5]} 11. b4
{[%clk 0:02:43]} 11... e5 {[%clk 0:02:42.1]} 12. d5 {[%clk 0:02:42.2]} 12... Nb8
{[%clk 0:02:38.9]} 13. e4 {[%clk 0:02:39.8]} 13... Nbd7 {[%clk 0:02:32.2]} 14.
h3 {[%clk 0:02:33]} 14... Bh5 {[%clk 0:02:30.1]} 15. g4 {[%clk 0:02:29.6]} 15...
Bg6 {[%clk 0:02:29.1]} 16. Bg5 {[%clk 0:02:29.5]} 16... h6 {[%clk 0:02:27.9]}
17. Be3 {[%clk 0:02:24.8]} 17... Nh7 {[%clk 0:02:11.2]} 18. Kg2 {[%clk 0:01:57]}
18... Ng5 {[%clk 0:02:09]} 19. Nxg5 {[%clk 0:01:52.7]} 19... hxg5 {[%clk
0:02:09.9]} 20. Rac1 {[%clk 0:01:40.2]} 20... a5 {[%clk 0:02:06]} 21. Nb5 {[%clk
0:01:35.4]} 21... axb4 {[%clk 0:02:03.6]} 22. Nxd6 {[%clk 0:01:34.4]} 22... cxd6
{[%clk 0:02:03.8]} 23. axb4 {[%clk 0:01:30.8]} 23... Ra3 {[%clk 0:01:51.5]} 24.
Bf3 {[%clk 0:01:26.2]} 24... Rfa8 {[%clk 0:01:38.9]} 25. Qc7 {[%clk 0:01:23.8]}
25... b5 {[%clk 0:01:33.6]} 26. Rc6 {[%clk 0:01:21.5]} 26... Rb3 {[%clk
0:01:07.6]} 27. Rxd6 {[%clk 0:01:18.2]} 27... Rd8 {[%clk 0:00:59.9]} 28. Bc5
{[%clk 0:01:16.9]} 28... Rxf3 {[%clk 0:00:55]} 29. Kxf3 {[%clk 0:01:15.1]} 29...
Bxe4+ {[%clk 0:00:55.3]} 30. Kg3 {[%clk 0:01:10.5]} 30... f5 {[%clk 0:00:48.1]}
31. gxf5 {[%clk 0:00:53.6]} 31... Bxf5 {[%clk 0:00:45.7]} 32. Re6 {[%clk
0:00:46.8]} 32... Qf7 {[%clk 0:00:25.6]} 33. Qxd8+ {[%clk 0:00:45.7]} 33... Kh7
{[%clk 0:00:26.3]} 34. Qxg5 {[%clk 0:00:41.3]} 34... Bxe6 {[%clk 0:00:25]} 35.
dxe6 {[%clk 0:00:40.6]} 35... Qxe6 {[%clk 0:00:25.9]} 36. Re1 {[%clk 0:00:39.3]}
36... e4 {[%clk 0:00:16.3]} 37. Qg4 {[%clk 0:00:37.7]} 37... Qe5+ {[%clk
0:00:13.6]} 38. Kg2 {[%clk 0:00:37.7]} 38... Nf6 {[%clk 0:00:13.8]} 39. Qh4+
{[%clk 0:00:36.5]} 39... Kg8 {[%clk 0:00:13.3]} 40. Be3 {[%clk 0:00:35.4]} 40...
Qf5 {[%clk 0:00:10.6]} 41. Qg3 {[%clk 0:00:33.1]} 41... Nd7 {[%clk 0:00:10]} 42.
Qg4 {[%clk 0:00:32.6]} 42... Qf7 {[%clk 0:00:09.3]} 43. Qxe4 {[%clk 0:00:31.5]}
43... Nf6 {[%clk 0:00:09.6]} 44. Qf3 {[%clk 0:00:28.6]} 44... Qg6+ {[%clk
0:00:07.8]} 45. Qg3 {[%clk 0:00:28.4]} 45... Qe4+ {[%clk 0:00:07.2]} 46. Kh2
{[%clk 0:00:27.9]} 46... Nh5 {[%clk 0:00:06.9]} 47. Qg4 {[%clk 0:00:27]} 47...
Qe5+ {[%clk 0:00:05.6]} 48. f4 {[%clk 0:00:24]} 48... Qd5 {[%clk 0:00:05.6]} 49.
Rg1 {[%clk 0:00:22.8]} 49... Kh7 {[%clk 0:00:03.1]} 50. Qg5 {[%clk 0:00:21.3]}
50... Qf3 {[%clk 0:00:01]} 51. Qg3 {[%clk 0:00:19.3]} 51... Kg8 {[%clk
0:00:01.9]} 52. Qxf3 {[%clk 0:00:19]} 1-0

[Event "*** SCC Grand Prix: Titled Tuesday Blitz"]
[Site "Chess.com"]
[Date "2020.10.13"]
[Round "3"]
[White "OhanyanEminChess"]
[Black "realmadridtv"]
[Result "1-0"]
[WhiteElo "2608"]
[BlackElo "2407"]
[TimeControl "180+1"]
[EndTime "10:29:50 PDT"]
[Termination "OhanyanEminChess won by checkmate"]

1. e4 {[%clk 0:03:00.9]} 1... e5 {[%clk 0:02:59.7]} 2. Nc3 {[%clk 0:03:00.6]}
2... Nf6 {[%clk 0:02:59.2]} 3. Bc4 {[%clk 0:02:59.4]} 3... Bc5 {[%clk
0:02:57.4]} 4. d3 {[%clk 0:02:56.8]} 4... c6 {[%clk 0:02:53]} 5. f4 {[%clk
0:02:55.8]} 5... d5 {[%clk 0:02:49.9]} 6. exd5 {[%clk 0:02:50.1]} 6... cxd5
{[%clk 0:02:46.3]} 7. Bb5+ {[%clk 0:02:48.6]} 7... Nc6 {[%clk 0:02:43.1]} 8.
fxe5 {[%clk 0:02:46.8]} 8... Ng4 {[%clk 0:02:35.3]} 9. d4 {[%clk 0:02:45.1]}
9... Bb6 {[%clk 0:02:10.2]} 10. Nf3 {[%clk 0:02:29]} 10... O-O {[%clk
0:02:06.5]} 11. O-O {[%clk 0:02:11.1]} 11... Ngxe5 {[%clk 0:01:56.5]} 12. Nxe5
{[%clk 0:02:01.9]} 12... Nxe5 {[%clk 0:01:55.7]} 13. Kh1 {[%clk 0:02:01.2]}
13... Ng4 {[%clk 0:01:45.5]} 14. h3 {[%clk 0:01:59.9]} 14... Qh4 {[%clk
0:01:42.5]} 15. Nxd5 {[%clk 0:01:06.4]} 15... Nf2+ {[%clk 0:01:25.7]} 16. Rxf2
{[%clk 0:01:05.6]} 16... Qxf2 {[%clk 0:01:26.6]} 17. Be3 {[%clk 0:01:04.6]}
17... Qh4 {[%clk 0:01:20.9]} 18. Nxb6 {[%clk 0:01:02.3]} 18... Bxh3 {[%clk
0:01:18.5]} 19. Qe1 {[%clk 0:00:39.2]} 19... Bxg2+ {[%clk 0:01:09]} 20. Kxg2
{[%clk 0:00:38.2]} 20... Qe4+ {[%clk 0:01:07.6]} 21. Kh2 {[%clk 0:00:19]} 21...
Qxc2+ {[%clk 0:00:59.1]} 22. Qe2 {[%clk 0:00:19.2]} 22... Qxe2+ {[%clk
0:00:56.3]} 23. Bxe2 {[%clk 0:00:20.1]} 23... axb6 {[%clk 0:00:57.1]} 24. Kg3
{[%clk 0:00:20.1]} 24... Rae8 {[%clk 0:00:54.3]} 25. Kf2 {[%clk 0:00:18.9]}
25... f5 {[%clk 0:00:53.8]} 26. Bf4 {[%clk 0:00:16.6]} 26... h6 {[%clk
0:00:52.8]} 27. Be5 {[%clk 0:00:16.1]} 27... Kh7 {[%clk 0:00:48.2]} 28. Rc1
{[%clk 0:00:15]} 28... Rf7 {[%clk 0:00:46.9]} 29. Bb5 {[%clk 0:00:11.8]} 29...
Rd8 {[%clk 0:00:45.5]} 30. a4 {[%clk 0:00:10.3]} 30... g5 {[%clk 0:00:44.6]} 31.
b4 {[%clk 0:00:08.8]} 31... h5 {[%clk 0:00:42.2]} 32. Bc4 {[%clk 0:00:08.5]}
32... Rfd7 {[%clk 0:00:38.5]} 33. Be6 {[%clk 0:00:07.7]} 33... Rxd4 {[%clk
0:00:35.5]} 34. Bxf5+ {[%clk 0:00:08]} 34... Kh6 {[%clk 0:00:33.5]} 35. Rc7
{[%clk 0:00:03.5]} 35... g4 {[%clk 0:00:24.6]} 36. Ke3 {[%clk 0:00:02.1]} 36...
Rxb4 {[%clk 0:00:15]} 37. Bf4+ {[%clk 0:00:02.3]} 37... Rxf4 {[%clk 0:00:15.2]}
38. Kxf4 {[%clk 0:00:03.2]} 38... Rd4+ {[%clk 0:00:15.8]} 39. Be4 {[%clk
0:00:03.8]} 39... Rxe4+ {[%clk 0:00:08.1]} 40. Kxe4 {[%clk 0:00:04.7]} 40... Kg5
{[%clk 0:00:08.9]} 41. Rxb7 {[%clk 0:00:05]} 41... h4 {[%clk 0:00:07.6]} 42.
Rxb6 {[%clk 0:00:05.1]} 42... h3 {[%clk 0:00:07.7]} 43. Rb1 {[%clk 0:00:02.6]}
43... Kh4 {[%clk 0:00:05.6]} 44. Kf4 {[%clk 0:00:02.8]} 44... h2 {[%clk
0:00:05.8]} 45. Rb8 {[%clk 0:00:01.7]} 45... Kh3 {[%clk 0:00:05.6]} 46. Rh8+
{[%clk 0:00:02.4]} 46... Kg2 {[%clk 0:00:05.6]} 47. Kxg4 {[%clk 0:00:03.3]}
47... h1=Q {[%clk 0:00:06.2]} 48. Rxh1 {[%clk 0:00:04.2]} 48... Kxh1 {[%clk
0:00:07.1]} 49. a5 {[%clk 0:00:04.1]} 49... Kg2 {[%clk 0:00:08]} 50. a6 {[%clk
0:00:05]} 50... Kf2 {[%clk 0:00:08.9]} 51. a7 {[%clk 0:00:05.9]} 51... Ke3
{[%clk 0:00:09]} 52. a8=Q {[%clk 0:00:06.8]} 52... Kd4 {[%clk 0:00:09.8]} 53.
Qf3 {[%clk 0:00:07.6]} 53... Ke5 {[%clk 0:00:09.8]} 54. Qd3 {[%clk 0:00:08]}
54... Ke6 {[%clk 0:00:10.7]} 55. Qd4 {[%clk 0:00:08.1]} 55... Kf7 {[%clk
0:00:11]} 56. Kf5 {[%clk 0:00:09]} 56... Kg8 {[%clk 0:00:10.7]} 57. Qd7 {[%clk
0:00:08.6]} 57... Kf8 {[%clk 0:00:11.5]} 58. Kg6 {[%clk 0:00:09.1]} 58... Kg8
{[%clk 0:00:12.2]} 59. Qg7# {[%clk 0:00:09.9]} 1-0

[Event "*** SCC Grand Prix: Titled Tuesday Blitz"]
[Site "Chess.com"]
[Date "2020.10.13"]
[Round "3"]
[White "AleksibFan"]
[Black "Vamostodorecto"]
[Result "1-0"]
[WhiteElo "2570"]
[BlackElo "2370"]
[TimeControl "180+1"]
[EndTime "10:29:51 PDT"]
[Termination "AleksibFan won by resignation"]

1. d4 {[%clk 0:03:00.9]} 1... Nf6 {[%clk 0:02:58.1]} 2. Bg5 {[%clk 0:03:01]}
2... Ne4 {[%clk 0:02:56.3]} 3. Bf4 {[%clk 0:03:01.1]} 3... c5 {[%clk 0:02:56.8]}
4. f3 {[%clk 0:03:00.6]} 4... Qa5+ {[%clk 0:02:56.8]} 5. c3 {[%clk 0:03:00.5]}
5... Nf6 {[%clk 0:02:56.5]} 6. d5 {[%clk 0:03:01]} 6... d6 {[%clk 0:02:54.5]} 7.
e4 {[%clk 0:03:00.8]} 7... g6 {[%clk 0:02:54]} 8. Nd2 {[%clk 0:03:00.7]} 8...
Bg7 {[%clk 0:02:54.1]} 9. Nc4 {[%clk 0:03:00.8]} 9... Qc7 {[%clk 0:02:53.6]} 10.
a4 {[%clk 0:03:01]} 10... O-O {[%clk 0:02:51.7]} 11. Qd2 {[%clk 0:03:00.9]}
11... Nbd7 {[%clk 0:02:41.2]} 12. Ne2 {[%clk 0:02:58.8]} 12... Ne5 {[%clk
0:02:41.6]} 13. Ng3 {[%clk 0:02:54.7]} 13... Nxc4 {[%clk 0:02:37.5]} 14. Bxc4
{[%clk 0:02:54.3]} 14... Nd7 {[%clk 0:02:38.3]} 15. O-O {[%clk 0:02:51.7]} 15...
Ne5 {[%clk 0:02:38.1]} 16. Be2 {[%clk 0:02:51.2]} 16... h5 {[%clk 0:02:30.2]}
17. Bh6 {[%clk 0:02:39.3]} 17... h4 {[%clk 0:02:10.8]} 18. Nh1 {[%clk 0:02:37]}
18... h3 {[%clk 0:02:05.7]} 19. g3 {[%clk 0:02:33.8]} 19... c4 {[%clk 0:02:02]}
20. Nf2 {[%clk 0:02:24.6]} 20... Kh7 {[%clk 0:01:43.3]} 21. Bxg7 {[%clk
0:02:07]} 21... Kxg7 {[%clk 0:01:44.2]} 22. f4 {[%clk 0:02:07.7]} 22... Nd7
{[%clk 0:01:39.5]} 23. Qd4+ {[%clk 0:02:06.8]} 23... f6 {[%clk 0:01:35.6]} 24.
Bxc4 {[%clk 0:01:57.5]} 24... Rh8 {[%clk 0:01:24]} 25. a5 {[%clk 0:01:48.2]}
25... b6 {[%clk 0:01:19.6]} 26. b4 {[%clk 0:01:45.5]} 26... Rb8 {[%clk 0:01:15]}
27. Be2 {[%clk 0:01:41.3]} 27... bxa5 {[%clk 0:01:11.7]} 28. Rxa5 {[%clk
0:01:39.5]} 28... Nb6 {[%clk 0:01:06.6]} 29. Rfa1 {[%clk 0:01:31.9]} 29... Rb7
{[%clk 0:01:06.7]} 30. c4 {[%clk 0:01:21.6]} 30... Nd7 {[%clk 0:01:00.9]} 31.
Rxa7 {[%clk 0:01:15.2]} 31... Qb8 {[%clk 0:00:53]} 32. Rxb7 {[%clk 0:00:52.1]}
32... Qxb7 {[%clk 0:00:53.9]} 33. c5 {[%clk 0:00:47.6]} 33... Qc7 {[%clk
0:00:51.2]} 34. c6 {[%clk 0:00:41]} 34... Nb6 {[%clk 0:00:50.3]} 35. Nd3 {[%clk
0:00:33.4]} 35... e6 {[%clk 0:00:49.8]} 36. Nb2 {[%clk 0:00:24.9]} 36... exd5
{[%clk 0:00:49.6]} 37. exd5 {[%clk 0:00:25.8]} 37... Re8 {[%clk 0:00:49.6]} 38.
Bf3 {[%clk 0:00:24.2]} 38... Bf5 {[%clk 0:00:44.8]} 39. Kf2 {[%clk 0:00:21.3]}
39... Nc8 {[%clk 0:00:44]} 40. Re1 {[%clk 0:00:19]} 40... Rxe1 {[%clk
0:00:41.3]} 41. Kxe1 {[%clk 0:00:19.9]} 41... Qe7+ {[%clk 0:00:40.2]} 42. Kf2
{[%clk 0:00:19.4]} 42... Qd8 {[%clk 0:00:33.9]} 43. g4 {[%clk 0:00:17.8]} 43...
Bc2 {[%clk 0:00:29.8]} 44. Nc4 {[%clk 0:00:17]} 44... Qc7 {[%clk 0:00:27.8]} 45.
b5 {[%clk 0:00:16.2]} 45... Bb3 {[%clk 0:00:22.9]} 46. b6 {[%clk 0:00:15.5]}
46... Qb8 {[%clk 0:00:21.6]} 47. b7 {[%clk 0:00:15]} 47... Na7 {[%clk
0:00:20.3]} 48. Ne3 {[%clk 0:00:14]} 48... Nb5 {[%clk 0:00:16.4]} 49. Qb2 {[%clk
0:00:13.8]} 49... Ba4 {[%clk 0:00:15.4]} 50. g5 {[%clk 0:00:13.5]} 50... Qa7
{[%clk 0:00:09.4]} 51. Qxf6+ {[%clk 0:00:13]} 51... Kh7 {[%clk 0:00:09.4]} 52.
Qf7+ {[%clk 0:00:11.7]} 52... Kh8 {[%clk 0:00:08.2]} 53. Qf8+ {[%clk 0:00:11.5]}
53... Kh7 {[%clk 0:00:08]} 54. b8=Q {[%clk 0:00:11.3]} 1-0